[Event "Mitropa Online Cup Women 2021"]
[Site "Hybrid"]
[Date "2021.05.04"]
[Round "2.7"]
[White "Gaal, Zsoka"]
[Black "Monpeurt, Cyrielle"]
[Result "1-0"]
[ECO "A11"]
[WhiteElo "2169"]
[BlackElo "2166"]
[Annotator "NA"]
[PlyCount "61"]
[EventDate "2021.05.04"]
[EventType "team-tourn"]
[EventCountry "NET"]
[SourceTitle "playchess.com"]
[Source "ChessBase"]
[SourceQuality "1"]
[WhiteTeam "Hungary"]
[BlackTeam "France"]
[WhiteTeamCountry "HUN"]
[BlackTeamCountry "FRA"]
[TimeControl "40/5400+30:1800+30"]

1. Nf3 {[%emt 0:00:00]} d5 {[%emt 0:00:19]} 2. g3 {[%emt 0:00:05]} Nf6 {[%emt 0:00:24]} 3. Bg2 {[%emt 0:00:17]} c6 {[%emt 0:00:14]} 4. c4 {[%emt 0:00:08]} Bg4 {[%emt 0:00:11]} 5. Ne5 {[%emt 0:00:08]} Be6 {[%emt 0:00:10]} 6. cxd5 {[%emt 0:00:05]} Bxd5 {[%emt 0:00:14]} 7. Nf3 {[%emt 0:00:06]} c5 {[%emt 0:00:13]} 8. Nc3 {[%emt 0:00:13]} Bc6 {[%emt 0:00:09]} 9. O-O {[%emt 0:00:05]} e6 {[%emt 0:00:34]} 10. Qc2 {[%emt 0:00:17]} Be7 {[%emt 0:03:01]} 11. e4 {[%emt 0:00:13]} O-O {[%emt 0:01:47]} 12. Rd1 {[%emt 0:01:20]} b5 {[%emt 0:08:06]} 13. d3 {[%emt 0:08:47]} Nbd7 {[%emt 0:04:41]} 14. Bf4 {[%emt 0:13:27]} Qb6 {[%emt 0:06:06]} 15. a4 {[%emt 0:11:06]} a6 {[%emt 0:05:33]} 16. d4 {[%emt 0:12:13]} b4 {[%emt 0:07:53]} 17. a5 {[%emt 0:00:18]} Qb7 {[%emt 0:01:17]} 18. d5 {[%emt 0:00:31]} bxc3 {[%emt 0:06:39]} 19. dxc6 {[%emt 0:00:11]} Qxc6 {[%emt 0:00:11]} 20. bxc3 {[%emt 0:01:39]} Nh5 {[%emt 0:10:34]} 21. Be3 {[%emt 0:04:55]} e5 {[%emt 0:07:34]} 22. Bh3 {[%emt 0:13:54]} Nhf6 {[%emt 0:05:07]} 23. Rd2 {[%emt 0:02:27]} Rfd8 {[%emt 0:02:38]} 24. Rad1 {[%emt 0:00:39]} Qc7 {[%emt 0:01:49]} 25. Qa4 {[%emt 0:07:41]} Nf8 {[%emt 0:01:54]} 26. Qc4 {[%emt 0:01:50]} h6 {[%emt 0:01:57]} 27. Bf5 {[%emt 0:06:29]} N8h7 {[%emt 0:07:54]} 28. Nxe5 {[%emt 0:02:22]} Qxe5 {[%emt 0:08:28]} 29. Bf4 {[%emt 0:00:19]} Rxd2 {[%emt 0:00:15]} 30. Rxd2 {[%emt 0:00:12]} Nxe4 {[%emt 0:00:09]} 31. Bxe4 {[%emt 0:01:22]} 1-0

[Event "Mitropa Online Cup Women 2021"]
[Site "Hybrid"]
[Date "2021.05.04"]
[Round "2.8"]
[White "Thomas, Anysia"]
[Black "Juhasz, Judit"]
[Result "0-1"]
[ECO "E90"]
[WhiteElo "2164"]
[BlackElo "2153"]
[Annotator "NA"]
[PlyCount "76"]
[EventDate "2021.05.04"]
[EventType "team-tourn"]
[EventCountry "NET"]
[SourceTitle "playchess.com"]
[Source "ChessBase"]
[SourceQuality "1"]
[WhiteTeam "France"]
[BlackTeam "Hungary"]
[WhiteTeamCountry "FRA"]
[BlackTeamCountry "HUN"]
[TimeControl "40/5400+30:1800+30"]

1. d4 {[%emt 0:00:00]} Nf6 {[%emt 0:00:07]} 2. c4 {[%emt 0:00:13]} g6 {[%emt 0:00:09]} 3. Nc3 {[%emt 0:00:16]} Bg7 {[%emt 0:00:10]} 4. e4 {[%emt 0:00:29]} d6 {[%emt 0:00:08]} 5. Nf3 {[%emt 0:00:34]} O-O {[%emt 0:00:34]} 6. h3 {[%emt 0:00:55]} e5 {[%emt 0:00:24]} 7. d5 {[%emt 0:00:11]} a5 {[%emt 0:00:32]} 8. Be3 {[%emt 0:01:08]} Na6 {[%emt 0:00:20]} 9. g4 {[%emt 0:00:13]} Nd7 {[%emt 0:00:25]} 10. Nd2 {[%emt 0:00:52]} f5 {[%emt 0:01:09]} 11. gxf5 {[%emt 0:21:37]} gxf5 {[%emt 0:00:12]} 12. exf5 {[%emt 0:24:33]} Ndc5 {[%emt 0:01:36]} 13. Nde4 {[%emt 0:06:01]} Bxf5 {[%emt 0:02:43]} 14. Nxc5 {[%emt 0:04:08]} Nxc5 {[%emt 0:01:28]} 15. Rg1 {[%emt 0:00:45]} Bg6 {[%emt 0:08:42]} 16. Qg4 {[%emt 0:05:32]} Qe7 {[%emt 0:05:12]} 17. h4 {[%emt 0:10:14]} Kh8 {[%emt 0:11:15]} 18. h5 {[%emt 0:08:02]} Bc2 {[%emt 0:07:39]} 19. Kd2 {[%emt 0:07:45]} Bf5 {[%emt 0:04:02]} 20. Qg5 {[%emt 0:00:25]} Qd7 {[%emt 0:02:32]} 21. Be2 {[%emt 0:00:25]} Bf6 {[%emt 0:04:05]} 22. Qg3 {[%emt 0:02:03]} Rg8 {[%emt 0:07:20]} 23. Qh2 {[%emt 0:00:26]} Na4 {[%emt 0:03:42]} 24. Rxg8+ {[%emt 0:00:40]} Rxg8 {[%emt 0:00:08]} 25. Rg1 {[%emt 0:01:14]} Nxc3 {[%emt 0:06:33]} 26. Rxg8+ {[%emt 0:00:23]} Kxg8 {[%emt 0:00:07]} 27. Qg3+ {[%emt 0:00:26]} Kf7 {[%emt 0:00:38]} 28. Kxc3 {[%emt 0:01:04]} Qa4 {[%emt 0:00:53]} 29. Kd2 {[%emt 0:02:03]} Qb4+ {[%emt 0:02:41]} 30. Kd1 {[%emt 0:01:02]} Qxb2 {[%emt 0:00:20]} 31. Ke1 {[%emt 0:00:25]} Qa1+ {[%emt 0:02:49]} 32. Bd1 {[%emt 0:00:19]} Qc3+ {[%emt 0:02:37]} 33. Kf1 {[%emt 0:01:08]} Qxc4+ {[%emt 0:01:42]} 34. Kg1 {[%emt 0:00:15]} Qxa2 {[%emt 0:01:34]} 35. Bf3 {[%emt 0:01:01]} e4 {[%emt 0:01:35]} 36. Bg2 {[%emt 0:00:21]} Qxd5 {[%emt 0:01:03]} 37. Bf1 {[%emt 0:00:25]} Qd1 {[%emt 0:00:32]} 38. Qf4 {[%emt 0:00:53]} Bh3 {[%emt 0:01:38]} 0-1

[Event "Mitropa Online Cup Women 2021"]
[Site "Hybrid"]
[Date "2021.05.04"]
[Round "2.9"]
[White "Movsesian, Julia"]
[Black "Brunello, Marina"]
[Result "1/2-1/2"]
[ECO "A07"]
[WhiteElo "2342"]
[BlackElo "2367"]
[Annotator "NA"]
[PlyCount "77"]
[EventDate "2021.05.04"]
[EventType "team-tourn"]
[EventCountry "NET"]
[SourceTitle "playchess.com"]
[Source "ChessBase"]
[SourceQuality "1"]
[WhiteTeam "Slovakia"]
[BlackTeam "Italy"]
[WhiteTeamCountry "SVK"]
[BlackTeamCountry "ITA"]
[TimeControl "40/5400+30:1800+30"]

1. Nf3 {[%emt 0:00:00]} d5 {[%emt 0:00:14]} 2. g3 {[%emt 0:00:10]} c6 {[%emt 0:02:33]} 3. Bg2 {[%emt 0:00:47]} Bg4 {[%emt 0:01:09]} 4. d3 {[%emt 0:01:36]} e6 {[%emt 0:00:23]} 5. O-O {[%emt 0:04:21]} Bd6 {[%emt 0:00:11]} 6. Nbd2 {[%emt 0:01:01]} Ne7 {[%emt 0:01:02]} 7. b3 {[%emt 0:02:55]} Nd7 {[%emt 0:02:57]} 8. Bb2 {[%emt 0:00:35]} O-O {[%emt 0:00:05]} 9. e4 {[%emt 0:01:56]} Qc7 {[%emt 0:09:53]} 10. Qe1 {[%emt 0:03:19]} f6 {[%emt 0:04:55]} 11. d4 {[%emt 0:02:43]} e5 {[%emt 0:26:50]} 12. c4 {[%emt 0:11:57]} dxc4 {[%emt 0:12:22]} 13. Nxc4 {[%emt 0:04:20]} Ng6 {[%emt 0:01:20]} 14. Rd1 {[%emt 0:05:39]} exd4 {[%emt 0:06:09]} 15. Nxd4 {[%emt 0:04:11]} Bc5 {[%emt 0:02:50]} 16. b4 {[%emt 0:17:54]} Nb6 {[%emt 0:02:18]} 17. Nxb6 {[%emt 0:10:11]} Bxb6 {[%emt 0:01:05]} 18. Rd2 {[%emt 0:07:51]} Ne5 {[%emt 0:01:35]} 19. Qc1 {[%emt 0:02:27]} Qf7 {[%emt 0:00:42]} 20. h3 {[%emt 0:04:42]} Bc8 {[%emt 0:04:04]} 21. Nf5 {[%emt 0:02:02]} Nc4 {[%emt 0:01:50]} 22. Ne7+ {[%emt 0:03:39]} Qxe7 {[%emt 0:01:09]} 23. Qxc4+ {[%emt 0:00:12]} Be6 {[%emt 0:00:03]} 24. Qc1 {[%emt 0:00:23]} Rfd8 {[%emt 0:00:49]} 25. Bc3 {[%emt 0:01:21]} Rxd2 {[%emt 0:00:24]} 26. Qxd2 {[%emt 0:00:06]} Rd8 {[%emt 0:00:03]} 27. Qb2 {[%emt 0:00:09]} Rd3 {[%emt 0:05:22]} 28. Kh2 {[%emt 0:01:26]} Qd7 {[%emt 0:00:08]} 29. Rc1 {[%emt 0:02:24]} Bd4 {[%emt 0:00:48]} 30. Bf1 {[%emt 0:01:54]} Bxc3 {[%emt 0:00:35]} 31. Rxc3 {[%emt 0:00:04]} Rxc3 {[%emt 0:01:22]} 32. Qxc3 {[%emt 0:00:02]} Bxa2 {[%emt 0:00:09]} 33. Qa3 {[%emt 0:00:02]} Bf7 {[%emt 0:04:19]} 34. Qxa7 {[%emt 0:00:04]} Be6 {[%emt 0:01:12]} 35. Qb8+ {[%emt 0:00:24]} Qc8 {[%emt 0:00:28]} 36. Qd6 {[%emt 0:00:04]} Qd7 {[%emt 0:00:21]} 37. Qb8+ {[%emt 0:00:03]} Qc8 {[%emt 0:00:04]} 38. Qd6 {[%emt 0:00:03]} Qd7 {[%emt 0:00:18]} 39. Qb8+ {[%emt 0:00:23]} 1/2-1/2

[Event "Mitropa Online Cup Women 2021"]
[Site "Hybrid"]
[Date "2021.05.04"]
[Round "2.10"]
[White "Zimina, Olga"]
[Black "Sankova, Stella"]
[Result "1-0"]
[ECO "E04"]
[WhiteElo "2354"]
[BlackElo "2087"]
[Annotator "NA"]
[PlyCount "73"]
[EventDate "2021.05.04"]
[EventType "team-tourn"]
[EventCountry "NET"]
[SourceTitle "playchess.com"]
[Source "ChessBase"]
[SourceQuality "1"]
[WhiteTeam "Italy"]
[BlackTeam "Slovakia"]
[WhiteTeamCountry "ITA"]
[BlackTeamCountry "SVK"]
[TimeControl "40/5400+30:1800+30"]

1. d4 {[%emt 0:00:00]} Nf6 {[%emt 0:00:11]} 2. c4 {[%emt 0:00:10]} e6 {[%emt 0:00:15]} 3. g3 {[%emt 0:00:37]} d5 {[%emt 0:00:17]} 4. Bg2 {[%emt 0:00:09]} Bb4+ {[%emt 0:00:14]} 5. Nd2 {[%emt 0:00:11]} O-O {[%emt 0:01:07]} 6. Ngf3 {[%emt 0:00:17]} dxc4 {[%emt 0:02:27]} 7. O-O {[%emt 0:00:58]} c5 {[%emt 0:05:48]} 8. Nxc4 {[%emt 0:01:29]} cxd4 {[%emt 0:02:57]} 9. Nxd4 {[%emt 0:00:35]} Qc7 {[%emt 0:00:22]} 10. Qb3 {[%emt 0:02:40]} Nd5 {[%emt 0:15:57]} 11. e4 {[%emt 0:16:27]} Nb6 {[%emt 0:00:16]} 12. Qxb4 {[%emt 0:01:57]} Na6 {[%emt 0:03:36]} 13. Nb5 {[%emt 0:09:52]} Qxc4 {[%emt 0:03:42]} 14. Qxc4 {[%emt 0:00:32]} Nxc4 {[%emt 0:00:04]} 15. Rd1 {[%emt 0:14:50]} e5 {[%emt 0:04:09]} 16. b3 {[%emt 0:00:43]} Na5 {[%emt 0:01:17]} 17. Ba3 {[%emt 0:01:41]} Re8 {[%emt 0:00:48]} 18. Nd6 {[%emt 0:00:56]} Rd8 {[%emt 0:02:27]} 19. Nxc8 {[%emt 0:01:13]} Raxc8 {[%emt 0:01:20]} 20. Bh3 {[%emt 0:00:51]} Ra8 {[%emt 0:04:10]} 21. f4 {[%emt 0:01:04]} Nc6 {[%emt 0:02:20]} 22. Bd6 {[%emt 0:00:29]} Nd4 {[%emt 0:10:03]} 23. fxe5 {[%emt 0:01:42]} Nf3+ {[%emt 0:03:25]} 24. Kf2 {[%emt 0:04:54]} Ng5 {[%emt 0:00:25]} 25. Bg2 {[%emt 0:00:04]} Rac8 {[%emt 0:03:08]} 26. Rac1 {[%emt 0:01:10]} Rxc1 {[%emt 0:02:24]} 27. Rxc1 {[%emt 0:00:08]} f6 {[%emt 0:00:25]} 28. Ke3 {[%emt 0:00:58]} Kf7 {[%emt 0:07:34]} 29. Bf1 {[%emt 0:01:42]} fxe5 {[%emt 0:02:04]} 30. Bxe5 {[%emt 0:06:38]} Re8 {[%emt 0:02:20]} 31. Bxa6 {[%emt 0:05:05]} bxa6 {[%emt 0:00:23]} 32. Rc7+ {[%emt 0:03:53]} Kg6 {[%emt 0:00:29]} 33. Rxg7+ {[%emt 0:04:33]} Kh6 {[%emt 0:01:07]} 34. Bb2 {[%emt 0:00:15]} Nxe4 {[%emt 0:01:22]} 35. Rxa7 {[%emt 0:01:33]} Re6 {[%emt 0:02:56]} 36. Kf4 {[%emt 0:02:59]} Nc5 {[%emt 0:03:11]} 37. Kf5 {[%emt 0:00:54]} 1-0

[Event "Mitropa Online Cup Women 2021"]
[Site "Hybrid"]
[Date "2021.05.04"]
[Round "2.11"]
[White "Ferkova, Dominika"]
[Black "Raccanello, Marianna"]
[Result "0-1"]
[ECO "E84"]
[WhiteElo "2006"]
[BlackElo "2140"]
[Annotator "NA"]
[PlyCount "76"]
[EventDate "2021.05.04"]
[EventType "team-tourn"]
[EventCountry "NET"]
[SourceTitle "playchess.com"]
[Source "ChessBase"]
[SourceQuality "1"]
[WhiteTeam "Slovakia"]
[BlackTeam "Italy"]
[WhiteTeamCountry "SVK"]
[BlackTeamCountry "ITA"]
[TimeControl "40/5400+30:1800+30"]

1. d4 {[%emt 0:00:00]} Nf6 {[%emt 0:00:05]} 2. c4 {[%emt 0:00:07]} g6 {[%emt 0:00:05]} 3. Nc3 {[%emt 0:00:06]} Bg7 {[%emt 0:00:08]} 4. e4 {[%emt 0:00:08]} d6 {[%emt 0:00:04]} 5. f3 {[%emt 0:00:10]} O-O {[%emt 0:00:14]} 6. Be3 {[%emt 0:00:08]} Nc6 {[%emt 0:00:10]} 7. Nge2 {[%emt 0:03:26]} a6 {[%emt 0:00:29]} 8. Qd2 {[%emt 0:02:23]} Rb8 {[%emt 0:00:06]} 9. a4 {[%emt 0:03:01]} Bd7 {[%emt 0:05:28]} 10. Rb1 {[%emt 0:08:47]} e5 {[%emt 0:10:01]} 11. d5 {[%emt 0:03:16]} Nb4 {[%emt 0:00:15]} 12. c5 {[%emt 0:05:18]} Qe7 {[%emt 0:01:57]} 13. cxd6 {[%emt 0:04:47]} Qxd6 {[%emt 0:06:50]} 14. Nc1 {[%emt 0:05:48]} c5 {[%emt 0:08:03]} 15. a5 {[%emt 0:14:57]} Rfc8 {[%emt 0:07:29]} 16. Bc4 {[%emt 0:02:03]} Ne8 {[%emt 0:09:11]} 17. O-O {[%emt 0:02:58]} b5 {[%emt 0:03:04]} 18. axb6 {[%emt 0:01:19]} Qxb6 {[%emt 0:03:22]} 19. f4 {[%emt 0:11:25]} Nd6 {[%emt 0:01:31]} 20. Be2 {[%emt 0:04:12]} f5 {[%emt 0:02:09]} 21. fxe5 {[%emt 0:10:08]} Bxe5 {[%emt 0:01:04]} 22. Nd3 {[%emt 0:03:56]} Nc4 {[%emt 0:06:38]} 23. Qc1 {[%emt 0:04:16]} Nxd3 {[%emt 0:00:11]} 24. Bxd3 {[%emt 0:00:25]} Nxe3 {[%emt 0:00:04]} 25. Rf3 {[%emt 0:00:28]} Ng4 {[%emt 0:00:32]} 26. Bc4 {[%emt 0:01:38]} Bd4+ {[%emt 0:01:31]} 27. Kh1 {[%emt 0:00:31]} Nf2+ {[%emt 0:00:10]} 28. Rxf2 {[%emt 0:00:05]} Bxf2 {[%emt 0:00:11]} 29. d6+ {[%emt 0:03:34]} Kg7 {[%emt 0:00:26]} 30. Qf4 {[%emt 0:01:58]} Bd4 {[%emt 0:00:55]} 31. Nd5 {[%emt 0:00:05]} Qb7 {[%emt 0:01:23]} 32. exf5 {[%emt 0:03:15]} Bxf5 {[%emt 0:00:18]} 33. Re1 {[%emt 0:00:03]} Re8 {[%emt 0:01:17]} 34. Ne7 {[%emt 0:00:02]} Qd7 {[%emt 0:01:34]} 35. g4 {[%emt 0:00:47]} Bxg4 {[%emt 0:05:06]} 36. Qf7+ {[%emt 0:00:03]} Kh8 {[%emt 0:00:10]} 37. Rf1 {[%emt 0:02:11]} Qxd6 {[%emt 0:01:52]} 38. Nd5 {[%emt 0:00:34]} Rf8 {[%emt 0:00:34]} 0-1

[Event "Mitropa Online Cup Women 2021"]
[Site "Hybrid"]
[Date "2021.05.04"]
[Round "2.12"]
[White "Grimaldi, Angela Flavia"]
[Black "Taragelova, Martina"]
[Result "1/2-1/2"]
[ECO "C54"]
[WhiteElo "2060"]
[BlackElo "2010"]
[Annotator "NA"]
[PlyCount "64"]
[EventDate "2021.05.04"]
[EventType "team-tourn"]
[EventCountry "NET"]
[SourceTitle "playchess.com"]
[Source "ChessBase"]
[SourceQuality "1"]
[WhiteTeam "Italy"]
[BlackTeam "Slovakia"]
[WhiteTeamCountry "ITA"]
[BlackTeamCountry "SVK"]
[TimeControl "40/5400+30:1800+30"]

1. e4 {[%emt 0:00:00]} e5 {[%emt 0:00:18]} 2. Nf3 {[%emt 0:00:13]} Nc6 {[%emt 0:00:15]} 3. Bc4 {[%emt 0:00:04]} Bc5 {[%emt 0:00:15]} 4. c3 {[%emt 0:00:04]} Nf6 {[%emt 0:00:25]} 5. d3 {[%emt 0:00:04]} d6 {[%emt 0:00:25]} 6. O-O {[%emt 0:00:43]} O-O {[%emt 0:00:24]} 7. Nbd2 {[%emt 0:00:07]} h6 {[%emt 0:01:34]} 8. h3 {[%emt 0:00:18]} a6 {[%emt 0:01:08]} 9. Bb3 {[%emt 0:00:04]} Re8 {[%emt 0:01:25]} 10. Re1 {[%emt 0:00:35]} Be6 {[%emt 0:01:23]} 11. Nf1 {[%emt 0:00:13]} d5 {[%emt 0:08:35]} 12. exd5 {[%emt 0:15:30]} Bxd5 {[%emt 0:02:03]} 13. Be3 {[%emt 0:09:31]} Bxe3 {[%emt 0:08:30]} 14. Rxe3 {[%emt 0:20:33]} Qd6 {[%emt 0:09:31]} 15. Ng3 {[%emt 0:01:57]} g6 {[%emt 0:07:04]} 16. Ne4 {[%emt 0:04:14]} Bxe4 {[%emt 0:03:52]} 17. dxe4 {[%emt 0:00:23]} Rad8 {[%emt 0:02:46]} 18. Re1 {[%emt 0:09:06]} Re7 {[%emt 0:09:40]} 19. Qc1 {[%emt 0:06:47]} Kg7 {[%emt 0:02:30]} 20. Qe3 {[%emt 0:03:41]} Qd3 {[%emt 0:03:58]} 21. Rad1 {[%emt 0:06:22]} Qxe3 {[%emt 0:01:01]} 22. Rxe3 {[%emt 0:00:26]} Rxd1+ {[%emt 0:02:31]} 23. Bxd1 {[%emt 0:00:23]} Rd7 {[%emt 0:00:24]} 24. Bc2 {[%emt 0:00:27]} Kf8 {[%emt 0:04:06]} 25. Rd3 {[%emt 0:01:14]} Ke7 {[%emt 0:01:52]} 26. Kf1 {[%emt 0:01:17]} Rxd3 {[%emt 0:06:10]} 27. Bxd3 {[%emt 0:00:04]} Nd7 {[%emt 0:00:59]} 28. Nd2 {[%emt 0:02:40]} Nc5 {[%emt 0:02:13]} 29. Bc2 {[%emt 0:00:55]} Ne6 {[%emt 0:05:11]} 30. g3 {[%emt 0:00:46]} Nb8 {[%emt 0:02:13]} 31. Nc4 {[%emt 0:01:27]} Nd7 {[%emt 0:00:52]} 32. Ke2 {[%emt 0:01:47]} f6 {[%emt 0:04:30]} 1/2-1/2

[Event "Mitropa Online Cup Women 2021"]
[Site "Hybrid"]
[Date "2021.05.04"]
[Round "2.15"]
[White "Worek, Joanna"]
[Black "Hrescak, Ivana"]
[Result "1-0"]
[ECO "B53"]
[WhiteElo "2322"]
[BlackElo "2201"]
[Annotator "NA"]
[PlyCount "79"]
[EventDate "2021.05.04"]
[EventType "team-tourn"]
[EventCountry "NET"]
[SourceTitle "playchess.com"]
[Source "ChessBase"]
[SourceQuality "1"]
[WhiteTeam "Czech Republic"]
[BlackTeam "Slovenia"]
[WhiteTeamCountry "CZE"]
[BlackTeamCountry "SLO"]
[TimeControl "40/5400+30:1800+30"]

1. e4 {[%emt 0:00:00]} c5 {[%emt 0:00:07]} 2. Nf3 {[%emt 0:00:09]} d6 {[%emt 0:00:19]} 3. d4 {[%emt 0:00:06]} cxd4 {[%emt 0:00:13]} 4. Qxd4 {[%emt 0:00:07]} a6 {[%emt 0:00:54]} 5. Be2 {[%emt 0:00:58]} Nc6 {[%emt 0:00:20]} 6. Qe3 {[%emt 0:00:07]} g6 {[%emt 0:00:33]} 7. O-O {[%emt 0:00:36]} Bg7 {[%emt 0:00:22]} 8. c4 {[%emt 0:02:44]} Nf6 {[%emt 0:00:31]} 9. h3 {[%emt 0:00:31]} O-O {[%emt 0:00:56]} 10. Rd1 {[%emt 0:02:06]} Qa5 {[%emt 0:02:25]} 11. Nc3 {[%emt 0:01:00]} Be6 {[%emt 0:02:22]} 12. Nd5 {[%emt 0:07:25]} Bxd5 {[%emt 0:04:35]} 13. cxd5 {[%emt 0:03:13]} Nb8 {[%emt 0:00:22]} 14. Bd2 {[%emt 0:10:40]} Qd8 {[%emt 0:00:41]} 15. Bc3 {[%emt 0:00:50]} Nbd7 {[%emt 0:01:02]} 16. Bd4 {[%emt 0:06:28]} Rc8 {[%emt 0:04:05]} 17. b4 {[%emt 0:01:09]} Qc7 {[%emt 0:04:14]} 18. Nd2 {[%emt 0:06:21]} Qb8 {[%emt 0:07:34]} 19. a4 {[%emt 0:04:02]} Ne8 {[%emt 0:04:36]} 20. Nb3 {[%emt 0:07:27]} Bxd4 {[%emt 0:04:08]} 21. Nxd4 {[%emt 0:00:25]} Nef6 {[%emt 0:00:30]} 22. a5 {[%emt 0:04:14]} Rc7 {[%emt 0:02:36]} 23. Ra3 {[%emt 0:09:18]} Ne5 {[%emt 0:03:23]} 24. Rb3 {[%emt 0:01:53]} Rfc8 {[%emt 0:05:01]} 25. f4 {[%emt 0:02:18]} Ned7 {[%emt 0:00:59]} 26. Kh2 {[%emt 0:03:51]} Qa7 {[%emt 0:07:09]} 27. Bf3 {[%emt 0:01:42]} Qb8 {[%emt 0:03:40]} 28. e5 {[%emt 0:03:30]} dxe5 {[%emt 0:05:05]} 29. fxe5 {[%emt 0:00:07]} Rc4 {[%emt 0:02:46]} 30. d6 {[%emt 0:00:27]} Ne8 {[%emt 0:03:43]} 31. Bd5 {[%emt 0:00:20]} Ng7 {[%emt 0:06:52]} 32. Bxc4 {[%emt 0:05:34]} Rxc4 {[%emt 0:00:10]} 33. dxe7 {[%emt 0:00:21]} Nxe5 {[%emt 0:03:10]} 34. Kh1 {[%emt 0:03:00]} Rc8 {[%emt 0:01:09]} 35. Re1 {[%emt 0:02:23]} Nc4 {[%emt 0:01:08]} 36. Qg5 {[%emt 0:06:06]} Re8 {[%emt 0:02:58]} 37. Qd5 {[%emt 0:00:37]} Nd6 {[%emt 0:01:11]} 38. Rc3 {[%emt 0:02:01]} Ndf5 {[%emt 0:01:22]} 39. Nxf5 {[%emt 0:00:11]} Nxf5 {[%emt 0:00:08]} 40. Qd7 {[%emt 0:00:00]} 1-0

[Event "Mitropa Online Cup Women 2021"]
[Site "Hybrid"]
[Date "2021.05.04"]
[Round "2.16"]
[White "Rozman, Monika"]
[Black "Richterova, Natasa"]
[Result "1/2-1/2"]
[ECO "C42"]
[WhiteElo "2175"]
[BlackElo "2188"]
[Annotator "RC"]
[PlyCount "165"]
[EventDate "2021.05.04"]
[EventType "team-tourn"]
[EventCountry "NET"]
[SourceTitle "playchess.com"]
[Source "ChessBase"]
[SourceQuality "1"]
[WhiteTeam "Slovenia"]
[BlackTeam "Czech Republic"]
[WhiteTeamCountry "SLO"]
[BlackTeamCountry "CZE"]
[TimeControl "40/5400+30:1800+30"]

1. e4 {[%emt 0:00:00]} e5 {[%emt 0:00:31]} 2. Nf3 {[%emt 0:00:10]} Nf6 {[%emt 0:00:10]} 3. Nxe5 {[%emt 0:02:41]} d6 {[%emt 0:00:27]} 4. Nf3 {[%emt 0:00:16]} Nxe4 {[%emt 0:00:09]} 5. Nc3 {[%emt 0:02:07]} Nf6 {[%emt 0:00:34]} 6. d4 {[%emt 0:01:41]} Be7 {[%emt 0:01:05]} 7. h3 {[%emt 0:08:17]} O-O {[%emt 0:02:45]} 8. Bd3 {[%emt 0:01:16]} Nc6 {[%emt 0:00:42]} 9. a3 {[%emt 0:02:56]} Re8 {[%emt 0:00:39]} 10. O-O {[%emt 0:00:16]} h6 {[%emt 0:00:52]} 11. Bf4 {[%emt 0:01:37]} Be6 {[%emt 0:08:59]} 12. Qd2 {[%emt 0:06:49]} Bf8 {[%emt 0:01:47]} 13. Rfe1 {[%emt 0:05:21]} Qd7 {[%emt 0:02:28]} 14. Rad1 {[%emt 0:09:33]} Ne7 {[%emt 0:03:02]} 15. Ne4 {[%emt 0:03:51]} Nxe4 {[%emt 0:16:46]} 16. Bxe4 {[%emt 0:00:13]} c6 {[%emt 0:00:36]} 17. Bh2 {[%emt 0:02:36]} Bf5 {[%emt 0:05:45]} 18. Bxf5 {[%emt 0:06:19]} Nxf5 {[%emt 0:02:16]} 19. c4 {[%emt 0:02:18]} h5 {[%emt 0:14:37]} 20. b4 {[%emt 0:03:58]} b5 {[%emt 0:15:00]} 21. c5 {[%emt 0:06:31]} Rxe1+ {[%emt 0:03:37]} 22. Qxe1 {[%emt 0:03:22]} Re8 {[%emt 0:00:46]} 23. Qf1 {[%emt 0:00:11]} a5 {[%emt 0:05:12]} 24. Qd3 {[%emt 0:03:14]} axb4 {[%emt 0:04:43]} 25. axb4 {[%emt 0:01:01]} g6 {[%emt 0:01:51]} 26. Qb3 {[%emt 0:03:22]} d5 {[%emt 0:05:07]} 27. Ne5 {[%emt 0:03:51]} Qe6 {[%emt 0:00:04]} 28. g4 {[%emt 0:01:24]} hxg4 {[%emt 0:00:22]} 29. hxg4 {[%emt 0:00:26]} Nh6 {[%emt 0:01:36]} 30. Qf3 {[%emt 0:04:13]} Bg7 {[%emt 0:00:52]} 31. Bf4 {[%emt 0:04:22]} Bxe5 {[%emt 0:00:16]} 32. Bxh6 {[%emt 0:00:12]} Bg7 {[%emt 0:00:51]} 33. Bxg7 {[%emt 0:07:21]} Kxg7 {[%emt 0:00:04]} 34. Kg2 {[%emt 0:00:04]} Qe2 {[%emt 0:01:40]} 35. Ra1 {[%emt 0:01:36]} Re4 {[%emt 0:00:36]} 36. Qxe2 {[%emt 0:01:32]} Rxe2 {[%emt 0:00:03]} 37. Ra6 {[%emt 0:00:05]} Re4 {[%emt 0:00:04]} 38. Rxc6 {[%emt 0:02:35]} Rxd4 {[%emt 0:00:46]} 39. Rd6 {[%emt 0:00:43]} Rxg4+ {[%emt 0:00:11]} 40. Kf3 {[%emt 0:00:00]} Rxb4 {[%emt 0:00:00]} 41. Rxd5 {[%emt 0:01:02]} Rc4 {[%emt 0:00:52]} 42. c6 {[%emt 0:00:13]} Rxc6 {[%emt 0:00:27]} 43. Rxb5 {[%emt 0:00:04]} Rc3+ {[%emt 0:00:54]} 44. Kg2 {[%emt 0:02:59]} Kh6 {[%emt 0:06:35]} 45. Ra5 {[%emt 0:00:54]} Rc4 {[%emt 0:05:02]} 46. Rb5 {[%emt 0:03:28]} f5 {[%emt 0:00:14]} 47. Ra5 {[%emt 0:00:31]} Kh5 {[%emt 0:01:38]} 48. Ra3 {[%emt 0:02:43]} Rg4+ {[%emt 0:00:48]} 49. Kh2 {[%emt 0:01:34]} Kh4 {[%emt 0:04:39]} 50. Rb3 {[%emt 0:01:50]} Kg5 {[%emt 0:02:46]} 51. Ra3 {[%emt 0:00:15]} Kf4 {[%emt 0:00:21]} 52. Rb3 {[%emt 0:00:26]} Rg5 {[%emt 0:01:07]} 53. Ra3 {[%emt 0:00:35]} Ke4 {[%emt 0:00:04]} 54. Re3+ {[%emt 0:05:12]} Kd4 {[%emt 0:00:15]} 55. Rf3 {[%emt 0:01:25]} Ke4 {[%emt 0:00:23]} 56. Re3+ {[%emt 0:00:04]} Kd4 {[%emt 0:00:02]} 57. Rf3 {[%emt 0:00:02]} Rg4 {[%emt 0:00:03]} 58. Kh3 {[%emt 0:00:18]} Rg1 {[%emt 0:02:25]} 59. Kh2 {[%emt 0:00:13]} Rg4 {[%emt 0:00:47]} 60. Kh3 {[%emt 0:00:04]} Ke5 {[%emt 0:00:02]} 61. Ra3 {[%emt 0:00:53]} Rg5 {[%emt 0:02:32]} 62. Re3+ {[%emt 0:02:06]} Kf6 {[%emt 0:01:10]} 63. Rf3 {[%emt 0:00:32]} Ke6 {[%emt 0:01:51]} 64. Re3+ {[%emt 0:00:15]} Kd5 {[%emt 0:00:05]} 65. Rd3+ {[%emt 0:00:12]} Kc4 {[%emt 0:00:03]} 66. Ra3 {[%emt 0:00:20]} Kd4 {[%emt 0:00:58]} 67. Rf3 {[%emt 0:00:14]} Rg1 {[%emt 0:00:03]} 68. Kh2 {[%emt 0:00:06]} Rc1 {[%emt 0:00:25]} 69. Ra3 {[%emt 0:06:27]} g5 {[%emt 0:00:34]} 70. Kg2 {[%emt 0:00:34]} Rc4 {[%emt 0:00:39]} 71. Re3 {[%emt 0:02:28]} Kd5 {[%emt 0:00:31]} 72. Re8 {[%emt 0:01:16]} Kd4 {[%emt 0:00:46]} 73. Re7 {[%emt 0:01:59]} g4 {[%emt 0:02:13]} 74. Re8 {[%emt 0:00:19]} f4 {[%emt 0:01:08]} 75. Rg8 {[%emt 0:00:49]} Kd3 {[%emt 0:00:37]} 76. Rxg4 {[%emt 0:05:06]} Ke2 {[%emt 0:00:12]} 77. Rg8 {[%emt 0:00:25]} f3+ {[%emt 0:04:42]} 78. Kg3 {[%emt 0:00:06]} Rc7 {[%emt 0:01:30]} 79. Re8+ {[%emt 0:00:49]} Kf1 {[%emt 0:00:04]} 80. Rf8 {[%emt 0:00:44]} Ke2 {[%emt 0:00:40]} 81. Re8+ {[%emt 0:00:26]} Kf1 {[%emt 0:00:04]} 82. Rf8 {[%emt 0:00:28]} Ke2 {[%emt 0:00:03]} 83. Re8+ {[%emt 0:00:03]} 1/2-1/2